fUST/lending_fUST_20251014
["ID","MTS","AMOUNT","RATE_DAILY","PERIOD"]
[391207297,1760420710782,250.0,0.00019495,2]
[391207298,1760420711459,250.0,0.00019495,2]
[391207299,1760420711834,-302.41782024,0.00019506,2]
[391207300,1760420711869,-407.44524737,0.00019506,2]
[391207301,1760420711904,-250.0,0.00019506,2]
[391207302,1760420712180,250.0,0.00019495,2]
[391207303,1760420712804,250.0,0.00019495,2]
[391207304,1760420713427,250.0,0.00019495,2]
[391207305,1760420713580,455.27781484,0.00019506,2]
[391207306,1760420714110,250.0,0.00019495,2]
[391207307,1760420714764,250.0,0.00019495,2]
[391207308,1760420715419,250.0,0.00019495,2]
[391207309,1760420715804,1063.645741,0.00013699,2]
[391207310,1760420716069,250.0,0.00019495,2]
[391207311,1760420716710,250.0,0.00019495,2]
[391207312,1760420717092,1527.6620181,0.00019504,2]
[391207313,1760420717519,250.0,0.00019495,2]
[391207314,1760420718151,250.0,0.00019495,2]
[391207315,1760420718790,396.41603358,0.00019495,2]
[391207316,1760420738229,2000.0,0.00019507,2]
[391207317,1760420762931,300.0,0.00019506,2]
[391207318,1760420775483,-4310.23525294,0.00019507,2]
[391207319,1760420775506,-10000.01,0.00019507,2]
[391207320,1760420775583,-10000.01,0.00019507,2]
[391207321,1760420775718,-10000.01,0.00019507,2]
[391207322,1760420778126,-200.0,0.00019506,2]
[391207323,1760420778175,-9600.01,0.00019507,2]
[391207324,1760420778258,-10000.01,0.00019507,2]
[391207325,1760420778408,-10000.01,0.00019507,2]
[391207326,1760420778558,-10000.01,0.00019507,2]
[391207327,1760420778707,-10000.01,0.00019507,2]
[391207328,1760420778836,-10000.01,0.00019507,2]
[391207329,1760420792317,-500.0,0.00019505,2]
[391207330,1760420792349,-500.0,0.00019505,2]
[391207331,1760420792380,-500.0,0.00019505,2]
[391207332,1760420792411,-645.33582117,0.00019505,2]
[391207333,1760420823065,171.62370022,0.00019506,2]
[391207334,1760420833472,500.0,0.00019505,2]
[391207335,1760420837254,500.0,0.00019506,2]
[391207336,1760420837515,500.0,0.00019506,2]
[391207337,1760420837758,500.0,0.00019506,2]
[391207338,1760420838070,500.0,0.00019506,2]
[391207339,1760420838304,500.0,0.00019506,2]
[391207340,1760420838532,500.0,0.00019506,2]
[391207341,1760420838804,426.44,0.00019506,2]
[391207342,1760420842436,500.0,0.00019506,2]
[391207343,1760420842684,500.0,0.00019506,2]
[391207344,1760420842908,500.0,0.00019506,2]
[391207345,1760420843204,111.27465744,0.00019506,2]
[391207346,1760420843231,388.72534256,0.00019506,2]
[391207347,1760420843453,500.0,0.00019506,2]
[391207348,1760420843769,500.0,0.00019506,2]
[391207349,1760420843929,500.0,0.00019506,2]
[391207350,1760420844168,500.0,0.00019506,2]
[391207351,1760420844398,500.0,0.00019506,2]
[391207352,1760420844633,500.0,0.00019506,2]
[391207353,1760420844892,500.0,0.00019506,2]
[391207354,1760420845139,500.0,0.00019506,2]
[391207355,1760420845374,500.0,0.00019506,2]
[391207356,1760420845605,500.0,0.00019506,2]
[391207357,1760420845847,500.0,0.00019506,2]
[391207358,1760420846135,500.0,0.00019506,2]
[391207359,1760420846354,500.0,0.00019506,2]
[391207361,1760420846589,500.0,0.00019506,2]
[391207362,1760420847366,500.0,0.00019506,2]
[391207363,1760420847620,500.0,0.00019506,2]
[391207364,1760420847880,405.55354484,0.00019506,2]
[391207365,1760420854030,4168.17,0.00019505,2]
[391207366,1760420854081,4168.17,0.00019505,2]
[391207367,1760420854316,1663.67,0.00019505,2]
[391207368,1760420854341,2504.5,0.00019505,2]
[391207369,1760420854535,4168.17,0.00019505,2]
[391207370,1760420854788,3327.34,0.00019505,2]
[391207371,1760420854812,840.83,0.00019505,2]
[391207372,1760420855036,4168.17,0.00019505,2]
[391207373,1760420855290,4168.17,0.00019505,2]
[391207374,1760420855522,822.84,0.00019505,2]
[391207375,1760420855549,3345.33,0.00019505,2]
[391207376,1760420855765,4168.17,0.00019505,2]
[391207377,1760420855997,2486.51,0.00019505,2]
[391207378,1760420856022,1681.66,0.00019505,2]
[391207379,1760420856243,500.0,0.00019506,2]
[391207380,1760420856324,4168.17,0.00019505,2]
[391207381,1760420856496,500.0,0.00019506,2]
[391207382,1760420856552,3150.18,0.00019505,2]
[391207383,1760420856577,1017.99,0.00019505,2]
[391207384,1760420856748,500.0,0.00019506,2]
[391207385,1760420856791,4168.17,0.00019505,2]
[391207386,1760420857039,4168.17,0.00019505,2]
[391207387,1760420857084,145.68,0.00019506,2]
[391207388,1760420857109,354.32,0.00019506,2]
[391207389,1760420857347,500.0,0.00019506,2]
[391207390,1760420857461,4168.17,0.00019505,2]
[391207391,1760420857592,500.0,0.00019506,2]
[391207392,1760420857875,500.0,0.00019506,2]
[391207393,1760420858146,500.0,0.00019506,2]
[391207394,1760420858448,500.0,0.00019506,2]
[391207395,1760420858674,500.0,0.00019506,2]
[391207396,1760420858900,500.0,0.00019506,2]
[391207397,1760420859212,500.0,0.00019506,2]
[391207398,1760420859530,500.0,0.00019506,2]
[391207399,1760420859772,500.0,0.00019506,2]
[391207400,1760420860001,500.0,0.00019506,2]
[391207401,1760420860247,500.0,0.00019506,2]
[391207402,1760420860820,500.0,0.00019506,2]
[391207403,1760420861047,500.0,0.00019506,2]
[391207404,1760420861282,500.0,0.00019506,2]
[391207405,1760420861524,437.84833906,0.00019506,2]
[391207406,1760420862332,1511.0,0.00019507,2]
[391207407,1760420864113,500.0,0.00019506,2]
[391207408,1760420864268,500.0,0.00019506,2]
[391207409,1760420864525,500.0,0.00019506,2]
[391207410,1760420864800,500.0,0.00019506,2]
[391207411,1760420865061,500.0,0.00019506,2]
[391207412,1760420865683,500.0,0.00019506,2]
[391207413,1760420865967,500.0,0.00019506,2]
[391207414,1760420866206,500.0,0.00019506,2]
[391207415,1760420866446,500.0,0.00019506,2]
[391207416,1760420866803,500.0,0.00019506,2]
[391207417,1760420884829,-367.79421095,0.00019507,2]
[391207418,1760420887422,-157.75244894,0.00019507,2]
[391207419,1760420889524,-296.97777975,0.00019507,2]
[391207420,1760420892094,-151.35,0.00019507,2]
[391207421,1760420942339,300.0,0.00019506,2]
[391207422,1760420944046,751.16166094,0.00019505,2]
[391207423,1760420944073,2891.45833906,0.00019505,2]
[391207424,1760420944294,3642.62,0.00019505,2]
[391207425,1760420944561,3465.93166094,0.00019505,2]
[391207426,1760420944587,176.68833906,0.00019505,2]
[391207427,1760420944789,3642.62,0.00019505,2]
[391207428,1760420945032,3642.62,0.00019505,2]
[391207429,1760420945273,2538.08166094,0.00019505,2]
[391207430,1760420945298,1104.53833906,0.00019505,2]
[391207431,1760420945502,3642.62,0.00019505,2]
[391207432,1760420945724,3642.62,0.00019505,2]
[391207433,1760420946007,1610.23166094,0.00019505,2]
[391207434,1760420946036,2032.38833906,0.00019505,2]
[391207435,1760420946182,3642.62,0.00019505,2]
[391207436,1760420946457,3642.62,0.00019505,2]
[391207437,1760420946684,682.38166094,0.00019505,2]
[391207438,1760420946713,2960.23833906,0.00019505,2]
[391207439,1760420946941,3642.62,0.00019505,2]
[391207440,1760420947152,3397.15166094,0.00019505,2]
[391207441,1760420947181,245.46833906,0.00019505,2]
[391207442,1760420947442,3642.62,0.00019505,2]
[391207443,1760420947680,3642.62,0.00019505,2]
[391207444,1760420947937,2469.30166094,0.00019505,2]
[391207445,1760420948110,1173.31833906,0.00019505,2]
[391207446,1760420948185,3642.62,0.00019505,2]
[391207447,1760420948413,3642.62,0.00019505,2]
[391207448,1760420948640,1541.45166094,0.00019505,2]
[391207449,1760420948667,2101.16833906,0.00019505,2]
[391207450,1760420948863,3642.62,0.00019505,2]
[391207451,1760420949089,3642.62,0.00019505,2]
[391207452,1760420949330,3642.62,0.00019505,2]
[391207453,1760420949557,3642.76479464,0.00019505,2]
[391207454,1760420957078,500.0,0.00019506,2]
[391207455,1760420957331,500.0,0.00019506,2]
[391207456,1760420957570,500.0,0.00019506,2]
[391207457,1760420957810,500.0,0.00019506,2]
[391207458,1760420958267,560.7601084,0.00019506,2]
[391207459,1760420968176,153.86509696,0.00019506,2]
[391207460,1760420968202,346.13490304,0.00019506,2]
[391207461,1760420970237,500.0,0.00019506,2]
[391207462,1760420971169,500.0,0.00019506,2]
[391207463,1760420971397,436.97362976,0.00019506,2]
[391207464,1760420971961,1018.4413454,0.00019505,2]
[391207465,1760420972099,500.0,0.00019506,2]
[391207466,1760420995541,500.0,0.00019506,2]
[391207467,1760421002064,247.0,0.00019506,2]
[391207468,1760421019226,500.0,0.00019506,2]
[391207469,1760421027875,500.0,0.00019506,2]
[391207470,1760421028131,590.34,0.00019506,2]
[391207499,1760421031872,-4983.30438896,0.00019507,2]
[391207501,1760421031883,-122769.511744,0.00019507,2]
[391207507,1760421032010,363.87309052,0.00019507,2]
[391207511,1760421037356,502.51814734,0.00019506,2]
[391207512,1760421037784,-16470.64413368,0.00019507,2]
[391207513,1760421037796,-8830.65587267,0.00019507,2]
[391207514,1760421037807,-3315.9623994,0.00019507,2]
[391207515,1760421037818,-5813.06489896,0.00019507,2]
[391207580,1760421038728,500.0,0.00019506,2]
[391207600,1760421039751,-264.19261302,0.00019507,2]
[391207607,1760421039968,-3e-08,0.00019507,2]
[391207609,1760421039989,-148.97747671,0.00019507,2]
[391207610,1760421040000,-63436.59342435,0.00019507,2]
[391207611,1760421040219,774.0,0.00019,2]
[391207612,1760421040539,504.46299582,0.00019506,2]
[391207616,1760421043283,-566.83505082,0.00019507,2]
[391207617,1760421043294,-16560.05634769,0.00019507,2]
[391207620,1760421043622,-13952.55908731,0.00019507,2]
[391207621,1760421044547,-500.0,0.00019506,2]
[391207622,1760421045731,-7880.73548595,0.00019507,2]
[391207623,1760421045845,-771.4533225,0.00019507,2]
[391207624,1760421045856,-642.51820702,0.00019507,2]
[391207626,1760421045951,-1291.27414565,0.00019507,2]
[391207627,1760421046519,-503.05799804,0.00019506,2]
[391207628,1760421046553,-1576.43229522,0.00019507,2]
[391207629,1760421046633,-84.97923828,0.00019507,2]
[391207630,1760421046669,-4243.9598248,0.00019507,2]
[391207631,1760421046700,-1512.0903504,0.00019507,2]
[391207632,1760421046851,-150.0,0.00019507,2]
[391207633,1760421046884,-278.0,0.00019605,2]
[391207634,1760421046916,-487.51358852,0.00019605,2]
[391207635,1760421046954,-4000.81282296,0.00019605,2]
[391207636,1760421047032,-167.35717704,0.00019605,2]
[391207637,1760421047065,-500.62456355,0.00019606,2]
[391207638,1760421047095,-500.0,0.00019606,2]
[391207639,1760421047126,-3830.5908729,0.00019607,2]
[391207640,1760421047186,-337.5791271,0.00019607,2]
[391207641,1760421047219,-4168.17,0.00019607,2]
[391207642,1760421047260,-1663.67,0.00019607,2]
[391207643,1760421047426,-2504.5,0.00019607,2]
[391207644,1760421047458,-822.84,0.00019607,2]
[391207645,1760421047500,-3345.33,0.00019607,2]
[391207646,1760421047551,-4168.17,0.00019607,2]
[391207647,1760421047592,-1663.67,0.00019607,2]
[391207648,1760421047699,-2504.5,0.00019607,2]
[391207649,1760421047730,-822.84,0.00019607,2]
[391207650,1760421047774,-3345.33,0.00019607,2]
[391207651,1760421047867,-4168.39105272,0.00019607,2]
[391207652,1760421047897,-180.36071586,0.00019673,2]
[391207653,1760421047927,-415.83126983,0.00019673,2]
[391207654,1760421048003,-470.84392318,0.00019673,2]
[391208897,1760421063517,500.0,0.00019506,2]
[391208923,1760421063761,500.0,0.00019506,2]
[391208950,1760421064005,605.35527296,0.00019506,2]
[391211066,1760421085863,501.27475594,0.00019506,2]
[391211333,1760421088884,500.0,0.00019506,2]
[391212570,1760421101460,500.0,0.00019506,2]
[391212597,1760421101698,500.0,0.00019506,2]
[391212604,1760421101759,-500.0,0.00019673,2]
[391212609,1760421101792,-500.0,0.00019673,2]
[391212614,1760421101825,-500.0,0.00019673,2]
[391212618,1760421101858,-500.0,0.00019673,2]
[391212623,1760421101891,-525.54665989,0.00019673,2]
[391212627,1760421101923,-151.0,0.00019707,7]
[391212632,1760421101956,-151.0,0.00019707,7]
[391212637,1760421101990,-151.0,0.00019707,7]
[391212641,1760421102024,-151.0,0.00019707,7]
[391212645,1760421102056,-151.0,0.00019707,7]
[391212650,1760421102089,-151.0,0.00019707,7]
[391212653,1760421102121,-151.0,0.00019707,7]
[391212654,1760421102155,-151.0,0.00019707,7]
[391212655,1760421102186,-151.0,0.00019707,7]
[391212656,1760421102216,-151.0,0.00019707,7]
[391212658,1760421102253,-151.0,0.00019707,7]
[391212662,1760421102285,-658.21265496,0.00019708,2]
[391212681,1760421102472,183.84,0.00019506,2]
[391212718,1760421102811,500.0,0.00019506,2]
[391212841,1760421103988,500.0,0.00019506,2]
[391213385,1760421109901,-5639.65472704,0.00019707,2]
[391213545,1760421111776,-10000.01,0.00019707,2]
[391213555,1760421111903,-10000.01,0.00019707,2]
[391213556,1760421112050,-10000.01,0.00019707,2]
[391213557,1760421112376,-10000.01,0.00019707,2]
[391214837,1760421125834,-300.0,0.00019505,2]
[391214842,1760421125867,-501.65309134,0.00019506,2]
[391214846,1760421125900,-500.0,0.00019506,2]
[391214851,1760421125934,-500.0,0.00019506,2]
[391214856,1760421125967,-500.0,0.00019506,2]
[391214875,1760421126142,-500.0,0.00019506,2]
[391214880,1760421126177,-500.0,0.00019506,2]
[391214884,1760421126223,-500.0,0.00019506,2]
[391214889,1760421126262,-500.0,0.00019506,2]
[391214893,1760421126294,-500.0,0.00019506,2]
[391214917,1760421126527,-396.70381732,0.00019506,2]
[391215238,1760421129846,-10000.01,0.00019407,2]
[391216164,1760421139316,-677.86761542,0.00019407,2]
[391216932,1760421147302,529.21761542,0.00019407,2]
[391217339,1760421151716,180.13286859,0.00019406,2]
[391217410,1760421152365,500.0,0.00019406,2]
[391217415,1760421152397,500.0,0.00019406,2]
[391217419,1760421152430,500.0,0.00019406,2]
[391217423,1760421152459,500.0,0.00019406,2]
[391217428,1760421152489,500.0,0.00019406,2]
[391217433,1760421152534,500.0,0.00019406,2]
[391217438,1760421152563,500.0,0.00019406,2]
[391217442,1760421152593,500.0,0.00019406,2]
[391217446,1760421152626,500.0,0.00019406,2]
[391217451,1760421152657,500.0,0.00019406,2]
[391217455,1760421152685,284.75290011,0.00019406,2]
[391217459,1760421152713,500.0,0.00019406,2]
[391217463,1760421152743,426.32799716,0.00019406,2]
[391217468,1760421152779,500.0,0.00019406,2]
[391224274,1760421225884,601.32798031,0.00018723,2]
[391224412,1760421227148,678.96089692,0.00019406,2]
[391224494,1760421227912,1299.28974149,0.00018723,2]
[391224498,1760421227938,1103.61686781,0.00018723,2]
[391225578,1760421238910,502.22432333,0.00019406,2]
[391226133,1760421244666,1286.86037832,0.00019053,2]
[391226170,1760421245007,1286.86037832,0.00019261,2]
[391226537,1760421248582,596.239524,0.00018796,2]
[391227205,1760421255955,448.50611235,0.00019406,2]
[391228901,1760421275590,800.0,0.00019283,2]
[391231577,1760421304787,1200.0,0.00019406,2]
[391231680,1760421322197,300.0,0.000193,2]
[391231705,1760421333161,300.0,0.000193,2]
[391231709,1760421344532,300.0,0.000193,2]
[391231710,1760421355121,300.0,0.000193,2]
[391231711,1760421362987,300.0,0.00019406,2]
[391231712,1760421367180,1286.86037832,0.00019298,2]
[391231713,1760421372170,291.0984724,0.00019344,2]
[391231714,1760421392141,500.0,0.00019406,2]
[391231715,1760421420125,229.1629505,0.00019406,2]
[391231716,1760421422441,300.0,0.00019406,2]
[391231717,1760421432573,150.0,0.0003053,60]
[391231719,1760421439289,-301.98336281,0.00019407,2]
[391231720,1760421447537,1200.0,0.00019406,2]
[391231721,1760421452848,301.98336281,0.00019407,2]
[391231722,1760421467392,925.01,0.00019397,3]
[391231723,1760421468346,388.79977895,0.00019344,2]
[391231724,1760421470648,500.0,0.00019406,2]
[391231725,1760421470691,500.0,0.00019406,2]
[391231726,1760421470721,500.0,0.00019406,2]
[391231727,1760421470750,500.0,0.00019406,2]
[391231728,1760421470779,500.0,0.00019406,2]
[391231729,1760421470809,500.0,0.00019406,2]
[391231730,1760421470843,500.0,0.00019406,2]
[391231731,1760421470873,477.09505702,0.00019406,2]
[391231732,1760421470898,22.90494298,0.00019406,2]
[391231733,1760421470929,500.0,0.00019406,2]
[391231734,1760421470959,500.0,0.00019406,2]
[391231735,1760421470992,500.0,0.00019406,2]
[391231736,1760421471023,500.0,0.00019406,2]
[391231737,1760421471060,368.3815043,0.00019406,2]
[391231738,1760421471091,500.0,0.00019406,2]
[391231739,1760421471120,500.0,0.00019406,2]
[391231740,1760421471151,500.0,0.00019406,2]
[391231741,1760421471182,220.38576671,0.00019406,2]
[391231742,1760421471219,183.25546583,0.00019406,2]
[391231743,1760421471249,500.0,0.00019406,2]
[391231744,1760421471279,500.0,0.00019406,2]
[391231745,1760421471309,500.0,0.00019406,2]
[391231746,1760421471342,500.0,0.00019406,2]
[391231747,1760421471371,500.0,0.00019406,2]
[391231748,1760421471404,500.0,0.00019406,2]
[391231749,1760421471439,500.0,0.00019406,2]
[391231750,1760421471469,557.37682092,0.00019406,2]
[391231751,1760421471499,500.0,0.00019406,2]
[391231752,1760421471529,500.0,0.00019406,2]
[391231753,1760421471566,500.0,0.00019406,2]
[391231754,1760421471597,147.70549926,0.00019406,2]
[391231755,1760421471623,352.29450074,0.00019406,2]
[391231756,1760421471656,486.88937778,0.00019406,2]
[391231757,1760421471688,500.0,0.00019406,2]
[391231758,1760421471723,500.0,0.00019406,2]
[391231759,1760421471756,500.0,0.00019406,2]
[391231760,1760421471789,500.0,0.00019406,2]
[391231761,1760421471967,500.0,0.00019406,2]
[391231762,1760421472005,500.0,0.00019406,2]
[391231763,1760421472039,454.98187841,0.00019406,2]
[391231764,1760421472071,500.0,0.00019406,2]
[391231765,1760421472109,500.0,0.00019406,2]
[391231766,1760421472141,500.0,0.00019406,2]
[391231767,1760421472173,500.0,0.00019406,2]
[391231768,1760421472203,500.0,0.00019406,2]
[391231769,1760421472234,500.0,0.00019406,2]
[391231770,1760421477457,500.0,0.00019406,2]
[391231771,1760421477761,500.0,0.00019406,2]
[391231772,1760421478041,500.0,0.00019406,2]
[391231773,1760421478291,423.92873627,0.00019406,2]
[391231774,1760421478513,462.51,0.00019397,3]
[391231775,1760421482581,1006.61729882,0.00019344,2]
[391231776,1760421482823,300.0,0.00019406,2]
[391231777,1760421483510,177.90618268,0.00019406,2]
[391231778,1760421485302,1233.49,0.00019406,2]
[391231779,1760421485545,1233.49,0.00019406,2]
[391231780,1760421485849,1233.49,0.00019406,2]
[391231781,1760421486094,1233.49,0.00019406,2]
[391231782,1760421486323,1195.08778223,0.00019406,2]
[391231783,1760421486352,38.40221777,0.00019406,2]
[391231784,1760421486593,1233.49,0.00019406,2]
[391231785,1760421486843,1233.49,0.00019406,2]
[391231786,1760421487198,1233.49,0.00019406,2]
[391231787,1760421487443,1233.49,0.00019406,2]
[391231788,1760421487686,1233.49,0.00019406,2]
[391231789,1760421487931,1233.49,0.00019406,2]
[391231790,1760421488191,1233.49,0.00019406,2]
[391231791,1760421488499,1233.49,0.00019406,2]
[391231792,1760421488727,93.68778223,0.00019406,2]
[391231793,1760421488755,1139.80221777,0.00019406,2]
[391231794,1760421488976,1233.49,0.00019406,2]
[391231795,1760421489126,314.72,0.00019397,3]
[391231796,1760421489284,1233.49,0.00019406,2]
[391231797,1760421489554,1233.49,0.00019406,2]
[391231798,1760421489827,1233.49,0.00019406,2]
[391231799,1760421490066,1233.49,0.00019406,2]
[391231800,1760421490301,1233.49,0.00019406,2]
[391231801,1760421490558,1233.49,0.00019406,2]
[391231802,1760421490791,1233.49,0.00019406,2]
[391231803,1760421491048,1233.49,0.00019406,2]
[391231804,1760421491498,1233.53,0.00019406,2]
[391231805,1760421499745,157.36,0.00019397,3]
[391231806,1760421503736,22932.0,0.00027,120]
[391231807,1760421510378,472.1,0.00019397,3]
[391231808,1760421520754,990.61,0.00019397,3]
[391231809,1760421531410,495.3,0.00019397,3]
[391231810,1760421542015,247.65,0.00019397,3]
[391231811,1760421542345,300.0,0.00019406,2]
[391231812,1760421552606,742.98,0.00019397,3]
[391231813,1760421561185,500.0,0.00019406,2]
[391231814,1760421561217,500.0,0.00019406,2]
[391231815,1760421561255,500.0,0.00019406,2]
[391231816,1760421561284,500.0,0.00019406,2]
[391231817,1760421561313,500.0,0.00019406,2]
[391231818,1760421561344,500.0,0.00019406,2]
[391231819,1760421561373,502.40649528,0.00019406,2]
[391231820,1760421561402,399.33390224,0.00019406,2]
[391231821,1760421561434,500.0,0.00019406,2]
[391231822,1760421561464,500.0,0.00019406,2]
[391231823,1760421561494,270.28049049,0.00019406,2]
[391231824,1760421561601,376.17053245,0.00019406,2]
[391231825,1760421561631,500.0,0.00019406,2]
[391231826,1760421561662,500.0,0.00019406,2]
[391231827,1760421561691,183.16014425,0.00019406,2]
[391231828,1760421561720,157.46584776,0.00019406,2]
[391231829,1760421561751,500.0,0.00019406,2]
[391231830,1760421561783,500.0,0.00019406,2]
[391231831,1760421561815,500.0,0.00019406,2]
[391231832,1760421561847,500.0,0.00019406,2]
[391231833,1760421561879,500.0,0.00019406,2]
[391231834,1760421561911,500.0,0.00019406,2]
[391231835,1760421561942,111.19258753,0.00019406,2]
[391231836,1760421561968,388.80741247,0.00019406,2]
[391231837,1760421562003,500.0,0.00019406,2]
[391231838,1760421562032,500.0,0.00019406,2]
[391231839,1760421562060,500.0,0.00019406,2]
[391231840,1760421562095,500.0,0.00019406,2]
[391231841,1760421562127,625.55285778,0.00019406,2]
[391231842,1760421562158,500.0,0.00019406,2]
[391231843,1760421562189,500.0,0.00019406,2]
[391231844,1760421562221,500.0,0.00019406,2]
[391231845,1760421562252,500.0,0.00019406,2]
[391231846,1760421562282,500.0,0.00019406,2]
[391231847,1760421562317,500.0,0.00019406,2]
[391231848,1760421562346,500.0,0.00019406,2]
[391231849,1760421562378,500.0,0.00019406,2]
[391231850,1760421562408,500.0,0.00019406,2]
[391231851,1760421562443,500.0,0.00019406,2]
[391231852,1760421562472,500.0,0.00019406,2]
[391231853,1760421562501,500.0,0.00019406,2]
[391231854,1760421562540,500.0,0.00019406,2]
[391231855,1760421562572,485.64972975,0.00019406,2]
[391231856,1760421562597,14.35027025,0.00019406,2]
[391231857,1760421562627,334.34593328,0.00019406,2]
[391231858,1760421562656,500.0,0.00019406,2]
[391231859,1760421562688,500.0,0.00019406,2]
[391231860,1760421562718,500.0,0.00019406,2]
[391231861,1760421562749,500.0,0.00019406,2]
[391231862,1760421562791,500.0,0.00019406,2]
[391231863,1760421562822,500.0,0.00019406,2]
[391231864,1760421562853,500.0,0.00019406,2]
[391231865,1760421562886,500.0,0.00019406,2]
[391231866,1760421562918,500.0,0.00019406,2]
[391231867,1760421562948,500.0,0.00019406,2]
[391231868,1760421562983,500.0,0.00019406,2]
[391231869,1760421563014,500.0,0.00019406,2]
[391231870,1760421563047,500.0,0.00019406,2]
[391231871,1760421563224,500.0,0.00019406,2]
[391231872,1760421563264,500.0,0.00019406,2]
[391231873,1760421563298,630.71442785,0.00019406,2]
[391231874,1760421563339,500.0,0.00019406,2]
[391231875,1760421563371,500.0,0.00019406,2]
[391231876,1760421563408,500.0,0.00019406,2]
[391231877,1760421563440,20.59936862,0.00019406,2]
[391231878,1760421563470,479.40063138,0.00019406,2]
[391231879,1760421563514,500.0,0.00019406,2]
[391231880,1760421563547,500.0,0.00019406,2]
[391231881,1760421563585,500.0,0.00019406,2]
[391231882,1760421563627,500.0,0.00019406,2]
[391231883,1760421563683,325.33,0.00019397,3]
[391231884,1760421571458,-509.87589533,0.00019406,2]
[391231885,1760421571492,-389.97954245,0.00019406,2]
[391231886,1760421571525,-222.73901472,0.00019406,2]
[391231887,1760421571558,-500.0,0.00019406,2]
[391231888,1760421571589,-500.0,0.00019406,2]
[391231889,1760421571619,-500.0,0.00019406,2]
[391231890,1760421571650,-500.0,0.00019406,2]
[391231891,1760421571680,-500.0,0.00019406,2]
[391231892,1760421571712,-500.0,0.00019406,2]
[391231893,1760421572022,-515.97287811,0.00019406,2]
[391231894,1760421572454,-5351.76533878,0.00019407,2]
[391231895,1760421572486,-10000.01,0.00019407,2]
[391231896,1760421572521,-10000.01,0.00019407,2]
[391231897,1760421572537,-10000.01,0.00019407,2]
[391231898,1760421573180,-10000.01,0.00019407,2]
[391231899,1760421573370,-10000.01,0.00019407,2]
[391231900,1760421573548,-10000.01,0.00019407,2]
[391231901,1760421573671,-10000.01,0.00019407,2]
[391231902,1760421573830,-162.67,0.00019397,3]
[391231903,1760421573871,-9674.67,0.00019407,2]
[391231904,1760421573952,-10000.01,0.00019407,2]
[391231905,1760421574088,-10000.01,0.00019407,2]
[391231906,1760421576119,126602.70907655,0.000273,120]
[391231907,1760421595083,-488.01,0.00019397,3]
[391231908,1760421595119,-500.0,0.00019406,2]
[391231909,1760421595161,-500.0,0.00019406,2]
[391231910,1760421595199,-500.0,0.00019406,2]
[391231911,1760421595234,-500.0,0.00019406,2]